bitfinex/quotes_BTCUSD_20240730
["timestamp","ask_amount","ask_price","bid_price","bid_amount"]
[1722357360998,1.22131701,66447.0,66446.0,0.1349308]
[1722357361423,1.22131701,66447.0,66446.0,0.12700715]
[1722357362037,0.94422601,66447.0,66446.0,0.13970787]
[1722357362445,0.94422601,66447.0,66446.0,0.13870787]
[1722357362789,0.94622601,66447.0,66446.0,0.1466312]
[1722357362919,0.56153501,66447.0,66446.0,0.12600715]
[1722357363119,0.56153501,66447.0,66446.0,0.13393048]
[1722357363319,0.56153501,66447.0,66446.0,0.03888416]
[1722357363320,0.56253501,66447.0,66446.0,0.03888416]
[1722357363505,0.56253501,66447.0,66446.0,0.16398302]
[1722357363960,0.86352601,66447.0,66446.0,0.13393519]
[1722357364329,1.00152601,66447.0,66446.0,0.16403319]
[1722357364530,1.00152601,66447.0,66446.0,0.15610986]
[1722357364934,1.45315005,66447.0,66446.0,0.15610986]
[1722357365356,1.78414105,66447.0,66446.0,0.031011]
[1722357365551,1.88414105,66447.0,66446.0,0.031011]
[1722357366106,1.88314105,66447.0,66446.0,0.031011]
[1722357366350,1.86314105,66447.0,66446.0,0.031011]
[1722357366553,1.87514105,66447.0,66446.0,0.031011]
[1722357367111,1.89514105,66447.0,66446.0,0.031011]
[1722357367314,1.87514105,66447.0,66446.0,0.031011]
[1722357367514,1.88429551,66447.0,66446.0,0.031011]
[1722357368032,1.90429551,66447.0,66446.0,0.031011]
[1722357368505,1.88429551,66447.0,66446.0,0.031011]
[1722357369032,1.90429551,66447.0,66446.0,0.031011]
[1722357369201,1.88429551,66447.0,66446.0,0.031011]
[1722357373365,1.88364994,66447.0,66446.0,0.031011]
[1722357375254,1.78734994,66447.0,66446.0,0.031011]
[1722357375391,1.87364994,66447.0,66446.0,0.031011]
[1722357383773,1.87447994,66447.0,66446.0,0.031011]
[1722357394309,1.87447994,66447.0,66446.0,0.096311]
[1722357394310,0.63805248,66447.0,66446.0,0.096311]
[1722357394545,0.03593344,66447.0,66446.0,0.47185498]
[1722357394804,0.03593344,66447.0,66446.0,0.32651588]
[1722357394976,0.03593344,66447.0,66446.0,0.48335569]
[1722357394977,0.01283,66447.0,66446.0,0.48335569]
[1722357395187,0.01283,66447.0,66446.0,0.48490989]
[1722357395406,0.01283,66447.0,66446.0,0.48335569]
[1722357395626,0.01283,66447.0,66446.0,0.88183957]
[1722357395845,0.01283,66447.0,66446.0,0.88028537]
[1722357396479,0.01283,66447.0,66446.0,0.88027734]
[1722357397303,0.01283,66447.0,66446.0,0.78434366]
[1722357398316,0.01283,66447.0,66446.0,1.08533966]
[1722357398433,0.01283,66447.0,66446.0,0.78434366]
[1722357398824,0.01283,66447.0,66446.0,1.08533966]
[1722357399142,0.00083,66447.0,66446.0,0.78434366]
[1722357399368,0.00183,66447.0,66446.0,0.89926519]
[1722357399572,0.00183,66447.0,66446.0,0.77416834]
[1722357399751,0.00083,66447.0,66446.0,0.89825441]
[1722357399949,0.00183,66447.0,66446.0,0.89925441]
[1722357400578,0.00183,66447.0,66446.0,0.59825841]
[1722357400788,0.152325,66447.0,66446.0,0.31083888]
[1722357400959,0.453316,66447.0,66446.0,0.31083888]
[1722357401225,0.453316,66447.0,66446.0,0.18575281]
[1722357401382,0.4768829,66447.0,66446.0,0.18575281]
[1722357401606,0.453316,66447.0,66446.0,0.18575281]
[1722357401825,0.47688305,66447.0,66446.0,0.18575281]
[1722357402025,0.47588305,66447.0,66446.0,0.18475281]
[1722357402224,0.47688305,66447.0,66446.0,0.18475281]
[1722357402642,0.47588305,66447.0,66446.0,0.18475281]
[1722357403085,0.47688305,66447.0,66446.0,0.18475281]
[1722357403528,0.77787405,66447.0,66446.0,0.03735281]
[1722357404769,0.17589205,66447.0,66446.0,0.03735281]
[1722357404984,0.47688305,66447.0,66446.0,0.10006521]
[1722357405192,0.452316,66447.0,66446.0,0.03735281]
[1722357405392,0.453316,66447.0,66446.0,0.03735281]
[1722357405950,0.754307,66447.0,66446.0,0.03735281]
[1722357406147,0.453316,66447.0,66446.0,0.03735281]
[1722357406854,0.453316,66447.0,66446.0,0.24656601]
[1722357406855,0.00183,66447.0,66446.0,0.24656601]
[1722357406986,0.00183,66447.0,66446.0,0.76043944]
[1722357407184,0.00183,66447.0,66446.0,0.45944344]
[1722357407413,0.00183,66447.0,66446.0,0.30894544]
[1722357407628,0.152325,66447.0,66446.0,0.30894544]
[1722357408144,0.00183,66447.0,66446.0,0.30894544]
[1722357408350,0.00183,66447.0,66446.0,0.34786492]
[1722357409290,0.152325,66447.0,66446.0,0.30894544]
[1722357409782,0.00183,66447.0,66446.0,0.33435081]
[1722357410311,0.00183,66447.0,66446.0,0.30894971]
[1722357410544,0.00183,66447.0,66446.0,0.56559508]
[1722357411120,0.00183,66447.0,66446.0,0.41509708]
[1722357411563,0.00183,66447.0,66446.0,0.56559508]
[1722357411975,0.00183,66447.0,66446.0,0.86659108]
[1722357412589,0.00183,66447.0,66446.0,0.56559508]
[1722357413159,0.00183,66447.0,66446.0,0.56559478]
[1722357413357,0.00183,66447.0,66446.0,0.86659078]
[1722357413584,0.00183,66447.0,66446.0,0.76044341]
[1722357414030,0.00183,66447.0,66446.0,0.45944741]
[1722357414153,0.00183,66447.0,66446.0,0.76044341]
[1722357414361,0.00183,66447.0,66446.0,0.45944741]
[1722357414560,0.00183,66447.0,66446.0,0.56648605]
[1722357414767,0.00183,66447.0,66446.0,0.86748205]
[1722357415861,0.00183,66447.0,66446.0,0.56648605]
[1722357416061,0.00183,66447.0,66446.0,0.86748205]
[1722357416266,0.00183,66447.0,66446.0,0.33435081]
[1722357416479,0.00183,66447.0,66446.0,0.45944738]
[1722357417238,0.00183,66447.0,66446.0,1.06143938]
[1722357417375,0.00183,66447.0,66446.0,1.08443938]
[1722357417582,0.00183,66447.0,66446.0,1.22298432]
[1722357419635,0.00183,66447.0,66446.0,1.22297887]
[1722357419833,0.00183,66447.0,66446.0,0.92198287]
[1722357420231,0.00183,66447.0,66446.0,1.22297887]
[1722357420435,0.0011828,66447.0,66446.0,1.22297887]
[1722357421266,0.0011828,66447.0,66446.0,0.92198287]
[1722357421682,0.0011828,66447.0,66446.0,1.22297887]
[1722357422723,0.0011828,66447.0,66446.0,1.09788775]
[1722357422926,0.0011828,66447.0,66446.0,1.22297811]
[1722357425068,0.0011828,66447.0,66446.0,1.37361115]
[1722357425265,0.0011828,66447.0,66446.0,1.96223378]
[1722357425468,0.0011828,66447.0,66446.0,1.99240378]
[1722357425686,0.0011828,66447.0,66446.0,2.40566358]
[1722357425870,0.0011828,66447.0,66446.0,2.21795636]
[1722357426072,0.0011828,66447.0,66446.0,2.1045527]
[1722357426272,0.0001828,66447.0,66446.0,2.16842018]
[1722357426561,0.0011828,66447.0,66446.0,2.37963669]
[1722357426768,0.0001828,66447.0,66446.0,2.06858924]
[1722357426968,0.0001828,66447.0,66446.0,2.15488924]
[1722357427178,0.0011828,66447.0,66446.0,2.45588524]
[1722357427522,0.0001828,66447.0,66446.0,2.15488924]
[1722357427741,0.0001828,66447.0,66446.0,2.45591426]
[1722357428331,0.0001828,66447.0,66446.0,2.15491826]
[1722357428757,0.0001828,66447.0,66446.0,2.45591426]
[1722357428935,0.0011828,66447.0,66446.0,2.46091426]
[1722357429132,0.0011828,66447.0,66446.0,2.27333806]
[1722357429336,0.0011828,66447.0,66446.0,2.46094367]
[1722357429812,0.0011828,66447.0,66446.0,2.39357671]
[1722357430161,0.0001828,66447.0,66446.0,2.45593838]
[1722357430358,0.0011828,66447.0,66446.0,2.46093838]
[1722357430588,0.0011828,66447.0,66446.0,2.39357671]
[1722357430785,0.0001828,66447.0,66446.0,2.38857671]
[1722357431161,0.0001828,66447.0,66446.0,2.45594045]
[1722357431608,0.0001828,66447.0,66446.0,2.38857671]
[1722357431923,0.0001828,66447.0,66446.0,2.40057671]
[1722357432494,0.0001828,66447.0,66446.0,2.40057664]
[1722357432722,0.0001828,66447.0,66446.0,2.39857664]
[1722357432903,0.0011828,66447.0,66446.0,2.39357664]
[1722357433428,0.0011828,66447.0,66446.0,2.09258064]
[1722357433629,0.0001828,66447.0,66446.0,2.08758064]
[1722357434067,0.0011828,66447.0,66446.0,2.09258064]
[1722357434269,0.0011828,66447.0,66446.0,2.39357664]
[1722357434574,0.0011828,66447.0,66446.0,2.09258064]
[1722357434761,0.0011828,66447.0,66446.0,2.48339829]
[1722357435326,0.0011828,66447.0,66446.0,2.18240229]
[1722357435833,0.0011828,66447.0,66446.0,2.48340927]
[1722357436027,0.0011828,66447.0,66446.0,2.18241327]
[1722357436507,0.0011828,66447.0,66446.0,2.48340927]
[1722357436923,0.0011828,66447.0,66446.0,2.48340671]
[1722357437564,0.0011828,66447.0,66446.0,2.39357666]
[1722357437706,0.0011828,66447.0,66446.0,2.40357666]
[1722357438763,0.0011828,66447.0,66446.0,2.51786422]
[1722357439212,0.0011828,66447.0,66446.0,2.51789943]
[1722357439607,0.0011828,66447.0,66446.0,2.40557665]
[1722357440129,0.0011828,66447.0,66446.0,2.51792654]
[1722357440530,0.0011828,66447.0,66446.0,2.40557665]
[1722357441629,0.0011828,66447.0,66446.0,2.5179319]
[1722357442371,0.0011828,66447.0,66446.0,2.08090069]
[1722357442520,0.0011828,66447.0,66446.0,2.50593123]
[1722357443402,0.0011828,66447.0,66446.0,2.20493523]
[1722357444002,0.0011828,66447.0,66446.0,2.50593123]
[1722357445257,0.0011828,66447.0,66446.0,2.20493523]
[1722357445644,0.0011828,66447.0,66446.0,2.20490521]
[1722357446982,0.0011828,66447.0,66446.0,2.50590121]
[1722357447396,0.0011828,66447.0,66446.0,2.20490521]
[1722357447594,0.0011828,66447.0,66446.0,2.50590121]
[1722357448445,0.0011828,66447.0,66446.0,2.51590121]
[1722357448658,0.0011828,66447.0,66446.0,2.50590121]
[1722357449043,0.0011828,66447.0,66446.0,2.39357662]
[1722357450268,0.0011828,66447.0,66446.0,2.09258062]
[1722357451757,0.0011828,66447.0,66446.0,2.39357662]
[1722357451997,0.0011828,66447.0,66446.0,2.09258062]
[1722357452375,0.0011828,66447.0,66446.0,2.39357662]
[1722357452973,0.0011828,66447.0,66446.0,2.0925766]
[1722357453602,0.0011828,66447.0,66446.0,2.3935726]
[1722357457023,0.0011828,66447.0,66446.0,2.39357259]
[1722357457654,0.0011828,66447.0,66446.0,2.09257659]
[1722357458091,0.0628828,66447.0,66446.0,0.39601724]
[1722357458262,0.62013303,66447.0,66446.0,0.35502471]
[1722357458506,0.62013303,66447.0,66446.0,0.16742157]
[1722357458507,0.16864703,66447.0,66446.0,0.16742157]
[1722357458664,0.16864703,66447.0,66446.0,0.58021428]
[1722357459021,0.16864703,66447.0,66446.0,0.88121395]
[1722357459230,0.16864703,66447.0,66446.0,0.64092296]
[1722357459681,0.16764703,66447.0,66446.0,0.63592296]
[1722357460317,0.16864703,66447.0,66446.0,0.64092296]
[1722357461074,0.0001828,66447.0,66446.0,1.6063598]
[1722357461193,0.0001828,66447.0,66446.0,1.6293598]
[1722357462421,0.0001828,66447.0,66446.0,1.6343598]
[1722357462625,0.0011828,66447.0,66446.0,1.6343598]
[1722357462818,0.0001828,66447.0,66446.0,1.6293598]
[1722357463936,0.0011828,66447.0,66446.0,1.6343598]
[1722357465003,0.0011828,66447.0,66446.0,1.63434562]
[1722357467068,0.1394828,66447.0,66446.0,1.33334962]
[1722357467294,0.1394828,66447.0,66446.0,0.80654319]
[1722357467468,0.1394828,66447.0,66446.0,0.55819479]
[1722357467854,0.1394828,66447.0,66446.0,0.31792936]
[1722357468632,0.16204737,66447.0,66446.0,0.16243136]
[1722357468839,0.61353337,66447.0,66446.0,0.16243136]
[1722357469041,0.61453337,66447.0,66446.0,0.16743136]
[1722357469245,0.61453337,66447.0,66446.0,0.16745191]
[1722357469454,0.91552437,66447.0,66446.0,0.16745191]
[1722357469628,0.61453337,66447.0,66446.0,0.16745191]
[1722357469829,0.61353337,66447.0,66446.0,0.16245191]
[1722357470030,0.61453337,66447.0,66446.0,0.16745191]
[1722357470414,0.61453337,66447.0,66446.0,0.16245191]
[1722357470615,0.61553337,66447.0,66446.0,0.16745191]
[1722357471443,0.91652437,66447.0,66446.0,0.16745191]
[1722357471642,0.91652437,66447.0,66446.0,0.1611101]
[1722357471906,1.21751537,66447.0,66446.0,0.1611101]
[1722357472081,0.91652437,66447.0,66446.0,0.1611101]
[1722357473050,0.91452437,66447.0,66446.0,0.03732944]
[1722357473242,0.91452437,66447.0,66446.0,0.1624333]
[1722357473444,0.91452437,66447.0,66446.0,0.15611486]
[1722357473766,0.91452437,66447.0,66446.0,0.1654333]
[1722357475658,0.31254237,66447.0,66446.0,0.19070909]
[1722357475829,0.31254237,66447.0,66446.0,0.19702753]
[1722357476035,0.61353337,66447.0,66446.0,0.19702753]
[1722357477031,0.91452437,66447.0,66446.0,0.1654333]
[1722357477232,0.61353337,66447.0,66446.0,0.16543201]
[1722357477640,0.31254237,66447.0,66446.0,0.16543201]
[1722357477835,0.91452437,66447.0,66446.0,0.16543201]
[1722357478041,0.61353337,66447.0,66446.0,0.15911357]
[1722357478430,0.61353337,66447.0,66446.0,0.19639551]
[1722357478634,0.61353337,66447.0,66446.0,0.19339551]
[1722357478891,0.61753337,66447.0,66446.0,0.19339551]
[1722357479451,0.61753337,66447.0,66446.0,0.19539551]
[1722357479694,0.91852437,66447.0,66446.0,0.19539551]
[1722357480025,1.52050637,66447.0,66446.0,0.03933078]
[1722357480201,1.68113941,66447.0,66446.0,0.03933078]
[1722357480415,1.68113941,66447.0,66446.0,0.033011]
[1722357480416,1.70113941,66447.0,66446.0,0.033011]
[1722357480608,1.68113941,66447.0,66446.0,0.033011]
[1722357480815,1.67113941,66447.0,66446.0,0.033011]
[1722357481148,1.68113941,66447.0,66446.0,0.033011]
[1722357481851,1.67713941,66447.0,66446.0,0.031011]
[1722357482114,1.68513941,66447.0,66446.0,0.031011]
[1722357482473,1.67713941,66447.0,66446.0,0.031011]
[1722357482855,1.68513941,66447.0,66446.0,0.031011]
[1722357483061,1.68252887,66447.0,66446.0,0.031011]
[1722357483504,1.69179211,66447.0,66446.0,0.031011]
[1722357483706,1.68379211,66447.0,66446.0,0.031011]
[1722357484586,1.22216807,66447.0,66446.0,0.031011]
[1722357484709,1.21290483,66447.0,66446.0,0.031011]
[1722357485090,1.22390483,66447.0,66446.0,0.031011]
[1722357485275,1.37453787,66447.0,66446.0,0.031011]
[1722357485862,1.36353787,66447.0,66446.0,0.031011]
[1722357486069,1.37153787,66447.0,66446.0,0.031011]
[1722357486392,1.36353787,66447.0,66446.0,0.031011]
[1722357486730,1.36853787,66447.0,66446.0,0.031011]
[1722357487175,1.21790483,66447.0,66446.0,0.031011]
[1722357493969,0.91691383,66447.0,66446.0,0.031011]
[1722357494619,1.21790483,66447.0,66446.0,0.031011]
[1722357495025,0.91691383,66447.0,66446.0,0.031011]
[1722357495231,1.21790483,66447.0,66446.0,0.031011]
[1722357495670,0.91691383,66447.0,66446.0,0.031011]
[1722357496640,0.02856457,66447.0,66446.0,0.031011]
[1722357496800,0.02856457,66447.0,66446.0,0.16713853]
[1722357496801,0.005,66447.0,66446.0,0.16713853]
[1722357497022,0.005,66447.0,66446.0,0.0420321]
[1722357497225,0.005,66447.0,66446.0,0.1734517]
[1722357497681,0.005,66447.0,66446.0,0.17344884]
[1722357498025,0.005,66447.0,66446.0,0.32394684]
[1722357498339,0.005,66447.0,66446.0,0.92593884]
[1722357498560,0.005,66447.0,66446.0,1.31003484]
[1722357499309,0.005,66447.0,66446.0,1.00903884]
[1722357500338,0.00083,66448.0,66447.0,0.752477]
[1722357500606,0.00083,66448.0,66447.0,1.03685419]
[1722357500772,0.00083,66448.0,66447.0,1.04317209]
[1722357501375,0.00083,66448.0,66447.0,1.42186309]
[1722357501552,0.00083,66448.0,66447.0,1.29676709]
[1722357501755,0.00083,66448.0,66447.0,1.4218521]
[1722357502417,0.00283,66448.0,66447.0,1.4218521]
[1722357502615,0.00083,66448.0,66447.0,1.4218521]
[1722357503163,0.00183,66448.0,66447.0,1.4238521]
[1722357504180,0.00183,66448.0,66447.0,1.1228611]
[1722357505759,0.00183,66448.0,66447.0,1.1228634]
[1722357509693,0.00183,66448.0,66447.0,0.8218724]
[1722357509910,0.00183,66448.0,66447.0,0.4828039]
[1722357510081,0.00183,66448.0,66447.0,0.90887946]
[1722357513871,0.00183,66448.0,66447.0,0.90888208]
[1722357515284,0.00183,66448.0,66447.0,1.20987308]
[1722357515490,0.00183,66448.0,66447.0,1.27527308]
[1722357515888,0.00183,66448.0,66447.0,1.35607308]
[1722357516088,0.00183,66448.0,66447.0,1.50095839]
[1722357516619,0.00183,66448.0,66447.0,1.65159143]
[1722357516799,0.00183,66448.0,66447.0,1.83921121]
[1722357516979,0.00183,66448.0,66447.0,1.86938121]
[1722357517233,0.00183,66448.0,66447.0,2.17037221]
[1722357517433,0.00183,66448.0,66447.0,2.17032306]
[1722357517839,0.00183,66448.0,66447.0,1.86933206]
[1722357518084,0.00183,66448.0,66447.0,1.86934221]
[1722357518255,0.00183,66448.0,66447.0,2.17033321]
[1722357518603,0.00183,66448.0,66447.0,1.86934221]
[1722357518803,0.00083,66448.0,66447.0,1.86734221]
[1722357519111,0.00183,66448.0,66447.0,1.87634221]
[1722357519299,0.00183,66448.0,66447.0,1.94384131]
[1722357519647,0.00083,66448.0,66447.0,1.93484131]
[1722357519848,0.00183,66448.0,66447.0,1.94484131]
[1722357520442,0.00183,66448.0,66447.0,1.87734221]
[1722357521434,0.00183,66448.0,66447.0,1.922344]
[1722357521636,0.00183,66448.0,66447.0,1.79728493]
[1722357521837,0.00183,66448.0,66447.0,1.92235669]
[1722357522599,0.00183,66448.0,66447.0,1.87735365]
[1722357522798,0.00183,66448.0,66447.0,1.92235669]
[1722357523374,0.00183,66448.0,66447.0,1.87735365]
[1722357525288,0.00183,66448.0,66447.0,1.87735338]
[1722357527712,0.00183,66448.0,66447.0,1.94486031]
[1722357527925,0.00183,66448.0,66447.0,2.17834438]
[1722357528351,0.00183,66448.0,66447.0,2.39085593]
[1722357528556,0.00183,66448.0,66447.0,2.2783147]
[1722357528966,0.00183,66448.0,66447.0,2.2903147]
[1722357529182,0.00083,66448.0,66447.0,2.6013057]
[1722357529431,0.51954115,66470.0,66447.0,2.6013057]
[1722357529432,0.0751,66479.0,66474.0,0.0604]
[1722357529634,0.141,66485.0,66479.0,0.752115]
[1722357529837,0.141,66485.0,66479.0,0.99552338]
[1722357530041,0.44444115,66488.0,66479.0,0.27265506]
[1722357530235,0.07544716,66491.0,66479.0,0.15430646]
[1722357530236,0.1448895,66480.0,66479.0,0.15430646]
[1722357530664,0.1448895,66480.0,66479.0,0.30472946]
[1722357531142,0.1448895,66480.0,66479.0,0.15430646]
[1722357531359,0.2953105,66480.0,66479.0,0.13130646]
[1722357531485,0.5961525,66480.0,66479.0,0.13130646]
[1722357531700,0.5961525,66480.0,66479.0,0.16096326]
[1722357531904,0.5961525,66480.0,66479.0,0.13128252]
[1722357533395,0.8969945,66480.0,66479.0,0.13128252]
[1722357533586,0.8969945,66480.0,66479.0,0.12503584]
[1722357533999,1.1978365,66480.0,66479.0,0.12503584]
[1722357534205,1.1978365,66480.0,66467.0,0.150449]
[1722357534206,0.1465,66474.0,66467.0,0.150449]
[1722357534403,0.150444,66470.0,66468.0,0.17431483]
[1722357534607,0.300875,66473.0,66469.0,0.12504293]
[1722357534608,0.150442,66471.0,66469.0,0.12504293]
[1722357534812,0.150442,66471.0,66468.0,0.023]
[1722357534813,0.752208,66471.0,66470.0,0.22455312]
[1722357534968,0.150446,66469.0,66468.0,0.023]
[1722357535170,0.150446,66469.0,66468.0,0.12505194]
[1722357535409,0.150446,66469.0,66468.0,0.14805576]
[1722357535612,0.150446,66469.0,66468.0,0.21180493]
[1722357536225,0.150444,66470.0,66468.0,0.21680493]
[1722357536430,0.150444,66470.0,66468.0,0.09174917]
[1722357536659,0.150444,66470.0,66469.0,0.14805684]
[1722357536832,0.150439,66472.0,66469.0,0.21638093]
[1722357537036,0.062,66478.0,66470.0,0.12505684]
[1722357537216,0.300859,66477.0,66471.0,0.29849784]
[1722357537419,0.300859,66477.0,66472.0,0.20874773]
[1722357537703,0.300859,66477.0,66473.0,0.12505684]
[1722357537848,0.150437,66473.0,66472.0,0.08369089]
[1722357538052,0.150437,66473.0,66472.0,0.2087339]
[1722357538219,0.451311,66473.0,66472.0,0.2087339]
[1722357538420,0.150434,66474.0,66472.0,0.2087339]
[1722357538625,0.212426,66478.0,66475.0,0.150431]
[1722357538839,0.212426,66478.0,66476.0,0.12504311]
[1722357538840,0.150427,66477.0,66476.0,0.12504311]
[1722357539040,0.150427,66477.0,66476.0,0.14804311]
[1722357539221,0.212426,66478.0,66476.0,0.14804311]
[1722357539417,0.212426,66478.0,66477.0,0.14804311]
[1722357539624,0.212426,66478.0,66477.0,0.21854939]
[1722357540082,0.062,66478.0,66477.0,0.21854939]
[1722357540284,0.226323,66479.0,66477.0,0.22479836]
[1722357540481,0.226323,66479.0,66478.0,0.12504311]
[1722357540680,0.0759,66479.0,66478.0,0.17083722]
[1722357540955,0.0038895,66480.0,66478.0,0.62836005]
[1722357541125,0.0038895,66480.0,66479.0,0.69453471]
[1722357541325,0.0038895,66480.0,66479.0,0.99538071]
[1722357541530,0.0038895,66480.0,66479.0,1.0016254]
[1722357541684,0.0038895,66480.0,66479.0,0.87658229]
[1722357541886,0.0038895,66480.0,66479.0,1.00160284]
[1722357542142,0.0038895,66480.0,66479.0,0.70075684]
[1722357542379,0.0038895,66480.0,66479.0,1.00160284]
[1722357543003,0.0038895,66480.0,66479.0,1.60048188]
[1722357543559,0.0098895,66480.0,66479.0,1.60148188]
[1722357543939,0.0038895,66480.0,66479.0,1.60048188]
[1722357544370,0.0048895,66480.0,66479.0,1.61048188]
[1722357544855,0.0048895,66480.0,66479.0,1.62555181]
[1722357546463,0.0048895,66480.0,66479.0,1.61048188]
[1722357548495,0.0048895,66480.0,66479.0,1.78630733]
[1722357548726,0.0048895,66480.0,66479.0,2.09885913]
[1722357549038,0.0048895,66480.0,66479.0,2.14375069]
[1722357549705,0.0048895,66480.0,66479.0,2.09885913]
[1722357550361,0.0048895,66480.0,66479.0,1.80728626]
[1722357553965,0.0048895,66480.0,66479.0,1.85214918]
[1722357554180,0.0048895,66480.0,66479.0,2.20813226]
[1722357555170,0.0048895,66480.0,66479.0,2.56914826]
[1722357555373,0.0048895,66480.0,66479.0,2.7660635]
[1722357555594,0.00018171,66484.0,66483.0,1.559096]
[1722357555796,0.00018171,66484.0,66483.0,2.82748834]
[1722357555969,0.00018171,66484.0,66483.0,2.83371977]
[1722357556375,0.00018171,66484.0,66483.0,3.13454777]
[1722357556731,0.0001,66491.0,66490.0,2.176353]
[1722357556848,0.0001,66491.0,66490.0,2.92821734]
[1722357557056,0.0001,66491.0,66490.0,3.31416026]
[1722357557255,0.0001,66491.0,66490.0,3.31609941]
[1722357557470,0.0151419,66494.0,66493.0,1.857476]
[1722357557848,0.01061952,66494.0,66493.0,2.81356911]
[1722357558254,0.00858,66503.0,66502.0,0.14367]
[1722357558428,0.00848,66515.0,66502.0,0.14367]
[1722357558429,0.00848,66515.0,66512.0,0.951415]
[1722357558667,0.00848,66515.0,66512.0,2.53997673]
[1722357558863,0.00848,66515.0,66512.0,2.65786928]
[1722357559084,0.00018171,66517.0,66515.0,1.474548]
[1722357559286,0.00018171,66517.0,66515.0,2.52719893]
[1722357559432,0.00018171,66517.0,66515.0,2.25723392]
[1722357560153,0.00018171,66517.0,66515.0,2.21116812]
[1722357560348,0.00018171,66517.0,66515.0,1.92448412]
[1722357560563,0.00018171,66517.0,66515.0,2.17273236]
[1722357560754,0.00018171,66517.0,66515.0,2.18673236]
[1722357560954,0.00018171,66517.0,66515.0,2.07517844]
[1722357561156,0.00018171,66517.0,66515.0,2.07673264]
[1722357561358,0.00018171,66517.0,66515.0,2.18823089]
[1722357561558,0.00018171,66517.0,66515.0,2.18667669]
[1722357561904,0.00018171,66517.0,66515.0,2.19598566]
[1722357562107,0.00018171,66517.0,66515.0,2.07048741]
[1722357562571,0.00018171,66517.0,66515.0,2.08448741]
[1722357562742,0.00018171,66517.0,66515.0,2.07048741]
[1722357562941,0.00018171,66517.0,66515.0,2.08448741]
[1722357563144,0.00018171,66517.0,66515.0,2.37272561]
[1722357563514,0.00018171,66517.0,66515.0,2.38672561]
[1722357563758,0.00018171,66517.0,66515.0,1.92608741]
[1722357563911,0.300624,66529.0,66521.0,0.300654]
[1722357564106,0.300615,66531.0,66523.0,0.04456513]
[1722357564350,0.150306,66531.0,66525.0,0.300637]
[1722357564552,0.07534716,66532.0,66526.0,0.2045158]
[1722357564553,0.150308,66530.0,66526.0,0.2045158]
[1722357564752,0.300612,66531.0,66527.0,0.12493582]
[1722357565106,0.150309,66530.0,66528.0,0.06475985]
[1722357565321,0.061,66535.0,66528.0,0.06475985]
[1722357565322,0.300599,66534.0,66529.0,0.12493694]
[1722357565524,0.150303,66532.0,66530.0,0.20887257]
[1722357565695,0.150303,66532.0,66531.0,0.12493694]
[1722357565832,0.150303,66532.0,66531.0,0.20636396]
[1722357566031,0.45091,66532.0,66531.0,0.20636396]
[1722357566275,0.150303,66532.0,66531.0,0.20636396]
[1722357566481,0.300599,66534.0,66531.0,0.20636396]
[1722357566683,0.150303,66533.0,66532.0,0.15746125]
[1722357567102,0.361596,66535.0,66532.0,0.16351104]
[1722357567303,0.1503,66534.0,66533.0,0.18278274]
[1722357567482,0.450898,66534.0,66533.0,0.18278274]
[1722357567688,0.450898,66534.0,66533.0,0.18883039]
[1722357568049,0.1503,66534.0,66533.0,0.21183039]
[1722357568256,0.211297,66535.0,66533.0,0.21183039]
[1722357568466,0.061,66535.0,66534.0,0.19566607]
[1722357568676,0.211296,66535.0,66534.0,0.19566607]
[1722357568875,0.211296,66535.0,66534.0,0.20171158]
[1722357569717,0.511889,66535.0,66534.0,0.20171158]
[1722357569958,0.812482,66535.0,66534.0,0.20371158]
[1722357570129,0.812482,66535.0,66534.0,0.13298003]
[1722357570331,0.812482,66535.0,66534.0,0.13098003]
[1722357570534,0.511889,66535.0,66534.0,0.13098003]
[1722357571137,0.211296,66535.0,66534.0,0.13098003]
[1722357571340,0.211296,66535.0,66534.0,0.22287424]
[1722357571586,0.211296,66535.0,66534.0,0.17652493]
[1722357571715,0.511889,66535.0,66534.0,0.17652493]
[1722357571919,0.511889,66535.0,66534.0,0.17652622]
[1722357572116,0.211296,66535.0,66534.0,0.17652622]
[1722357572394,0.211296,66535.0,66534.0,0.23714122]
[1722357572573,0.061,66535.0,66534.0,0.19259707]
[1722357572873,0.062,66535.0,66534.0,0.19259707]
[1722357573292,0.062,66535.0,66534.0,0.2604133]
[1722357573494,0.062,66535.0,66534.0,0.19359707]
[1722357573906,0.06283,66535.0,66534.0,0.19359707]
[1722357574084,0.06283,66535.0,66534.0,0.5449293]
[1722357574285,0.513719,66535.0,66534.0,0.49236086]
[1722357574488,0.814312,66535.0,66534.0,0.49236086]
[1722357574686,0.814312,66535.0,66534.0,0.28270435]
[1722357575007,0.814312,66535.0,66534.0,0.19359707]
[1722357575163,0.813312,66535.0,66534.0,0.19259707]
[1722357575365,0.813312,66535.0,66534.0,0.28170435]
[1722357575597,0.814312,66535.0,66534.0,0.19259707]
[1722357575792,0.813312,66535.0,66534.0,0.13098207]
[1722357575991,0.212126,66535.0,66534.0,0.13098207]
[1722357576192,0.212126,66535.0,66534.0,0.31839287]
[1722357576391,0.212126,66535.0,66534.0,0.4086876]
[1722357576733,0.512719,66535.0,66534.0,0.31839287]
[1722357577130,0.813312,66535.0,66534.0,0.31839287]
[1722357577329,0.813312,66535.0,66534.0,0.42978428]
[1722357577467,0.813312,66535.0,66534.0,0.50115686]
[1722357578528,0.813312,66535.0,66534.0,0.1888095]
[1722357578736,0.813312,66535.0,66534.0,0.42977933]
[1722357579130,0.512719,66535.0,66534.0,0.42977933]
[1722357579953,0.212126,66535.0,66534.0,0.42977933]
[1722357580154,0.512719,66535.0,66534.0,0.42977933]
[1722357581182,0.813312,66535.0,66534.0,0.42977933]
[1722357581353,0.813312,66535.0,66534.0,0.48778826]
[1722357581553,0.512719,66535.0,66534.0,0.48778826]
[1722357582056,0.212126,66535.0,66534.0,0.06405444]
[1722357582256,0.06183,66535.0,66534.0,0.37639074]
[1722357582459,0.06183,66535.0,66534.0,0.46868081]
[1722357582990,0.06183,66535.0,66534.0,0.31838181]
[1722357584138,0.06183,66535.0,66534.0,0.46868081]
[1722357584372,0.06183,66535.0,66534.0,0.58904367]
[1722357584694,0.06183,66535.0,66534.0,0.43874467]
[1722357585072,0.00083,66535.0,66534.0,0.43874467]
[1722357585879,0.451719,66535.0,66534.0,0.43874467]
[1722357586076,0.00083,66535.0,66534.0,0.31838181]
[1722357588473,0.00083,66535.0,66534.0,0.46868081]
[1722357588672,0.00083,66535.0,66534.0,0.46867108]
[1722357588873,0.00083,66535.0,66534.0,0.53698063]
[1722357589073,0.00083,66535.0,66534.0,0.68727963]
[1722357589276,0.00083,66535.0,66534.0,0.57566089]
[1722357589485,0.00083,66535.0,66534.0,0.87625889]